[Event "DVM U20 2019"]
[Site "Braunschweig"]
[Date "2019.12.27"]
[Round "2"]
[White "Goldbeck, Lars"]
[Black "Küppers, Timo"]
[Result "1/2-1/2"]
[ECO "A48"]
[WhiteElo "2312"]
[BlackElo "2296"]
[Annotator "NA"]
[PlyCount "69"]
[EventDate "2019.12.27"]
[EventType "team-tourn"]
[EventRounds "7"]
[EventCountry "GER"]
[SourceTitle "playchess.com"]
[Source "ChessBase"]
[SourceQuality "1"]
[WhiteTeam "SC Bavaria Regensburg"]
[BlackTeam "SF Essen-Katernberg"]
[TimeControl "40/5400+30:1800+30"]

1. d4 {[%emt 0:00:00]} Nf6 {[%emt 0:00:14]} 2. Nf3 {[%emt 0:00:00]} g6 {[%emt 0:00:24]} 3. Bg5 {[%emt 0:00:00]} Bg7 {[%emt 0:00:30]} 4. Nbd2 {[%emt 0:00:00]} d5 {[%emt 0:02:15]} 5. e3 {[%emt 0:00:05]} O-O {[%emt 0:00:49]} 6. Be2 {[%emt 0:00:53]} Nbd7 {[%emt 0:03:07]} 7. O-O {[%emt 0:00:09]} c5 {[%emt 0:00:37]} 8. c3 {[%emt 0:05:51]} h6 {[%emt 0:02:20]} 9. Bh4 {[%emt 0:00:32]} b6 {[%emt 0:14:46]} 10. Qb3 {[%emt 0:05:50]} Bb7 {[%emt 0:04:13]} 11. Rfd1 {[%emt 0:01:19]} Rc8 {[%emt 0:10:29]} 12. a4 {[%emt 0:07:05]} a6 13. Qa2 {[%emt 0:10:29]} e6 {[%emt 0:26:33]} 14. Bd3 {[%emt 0:15:49]} Qe7 {[%emt 0:05:26]} 15. Ne5 {[%emt 0:03:07]} g5 {[%emt 0:00:41]} 16. Bg3 {[%emt 0:01:17]} Nh5 {[%emt 0:00:59]} 17. Nxd7 {[%emt 0:01:10]} Qxd7 {[%emt 0:00:11]} 18. Be2 {[%emt 0:07:25]} Nxg3 {[%emt 0:00:20]} 19. hxg3 {[%emt 0:00:00]} Qc7 {[%emt 0:03:09]} 20. a5 {[%emt 0:02:15]} b5 {[%emt 0:01:15]} 21. Nb3 {[%emt 0:00:00]} c4 22. Nc5 {[%emt 0:03:01]} Rb8 {[%emt 0:01:35]} 23. Qb1 {[%emt 0:05:08]} Bc8 {[%emt 0:02:54]} 24. e4 {[%emt 0:00:53]} Rd8 {[%emt 0:00:42]} 25. exd5 exd5 {[%emt 0:00:21]} 26. b4 {[%emt 0:01:56]} cxb3 {[%emt 0:00:30]} 27. Qxb3 {[%emt 0:00:08]} Bf8 {[%emt 0:02:29]} 28. Bf3 Qd6 {[%emt 0:01:12]} 29. Re1 {[%emt 0:07:13]} Qc6 {[%emt 0:04:32]} 30. Nd3 {[%emt 0:13:49]} Be6 {[%emt 0:03:52]} 31. Ne5 {[%emt 0:01:13]} Qc7 {[%emt 0:00:54]} 32. Bg4 {[%emt 0:01:17]} Bxg4 {[%emt 0:01:52]} 33. Nxg4 {[%emt 0:00:01]} Bg7 {[%emt 0:00:38]} 34. Ne3 {normal} Qd7 {[%emt 0:00:30]} 35. g4 {[%emt 0:00:30]} 1/2-1/2

[Event "DVM U20 2019"]
[Site "Braunschweig"]
[Date "2019.12.27"]
[Round "2"]
[White "Oberhofer, Cédric"]
[Black "Gorainow, Nikita"]
[Result "1-0"]
[ECO "D74"]
[WhiteElo "2260"]
[BlackElo "1946"]
[Annotator "NA"]
[PlyCount "63"]
[EventDate "2019.12.27"]
[EventType "team-tourn"]
[EventRounds "7"]
[EventCountry "GER"]
[SourceTitle "playchess.com"]
[Source "ChessBase"]
[SourceQuality "1"]
[WhiteTeam "SC Bavaria Regensburg"]
[BlackTeam "SF Essen-Katernberg"]
[TimeControl "40/5400+30:1800+30"]

1. d4 {[%emt 0:00:00]} Nf6 {[%emt 0:00:00]} 2. c4 {[%emt 0:00:00]} g6 {[%emt 0:00:00]} 3. Nf3 {[%emt 0:00:00]} Bg7 {[%emt 0:00:00]} 4. g3 {[%emt 0:00:00]} d5 {[%emt 0:00:06]} 5. cxd5 {[%emt 0:00:17]} Nxd5 {[%emt 0:00:05]} 6. Bg2 {[%emt 0:00:14]} O-O {[%emt 0:00:29]} 7. O-O {[%emt 0:00:11]} Nd7 {[%emt 0:25:17]} 8. Qc2 {[%emt 0:11:16]} c6 {[%emt 0:03:42]} 9. Rd1 {[%emt 0:03:17]} Qe8 {[%emt 0:07:03]} 10. e4 {[%emt 0:02:10]} N5b6 {[%emt 0:00:07]} 11. a4 {[%emt 0:05:49]} a5 {[%emt 0:01:09]} 12. Nc3 {[%emt 0:01:22]} e5 {[%emt 0:01:48]} 13. d5 {[%emt 0:00:48]} Nf6 {[%emt 0:19:08]} 14. b3 {[%emt 0:07:58]} cxd5 {[%emt 0:04:54]} 15. Ba3 {[%emt 0:01:03]} dxe4 {[%emt 0:11:00]} 16. Bxf8 {[%emt 0:01:23]} Qxf8 {[%emt 0:06:10]} 17. Nxe4 {[%emt 0:11:08]} Nfd5 {[%emt 0:11:08]} 18. Rac1 {[%emt 0:05:57]} Be6 {[%emt 0:01:26]} 19. Nc5 {[%emt 0:02:54]} Bf5 {[%emt 0:00:25]} 20. Qe2 {[%emt 0:07:41]} Rc8 {[%emt 0:04:10]} 21. Nxb7 {[%emt 0:01:27]} Nc3 {[%emt 0:01:40]} 22. Rxc3 {[%emt 0:00:32]} Rxc3 {[%emt 0:00:05]} 23. Rd8 {[%emt 0:01:13]} Rc1+ {[%emt 0:00:56]} 24. Ne1 {[%emt 0:02:04]} e4 {[%emt 0:00:07]} 25. Rxf8+ {[%emt 0:00:09]} Bxf8 {[%emt 0:00:04]} 26. Qe3 {[%emt 0:03:52]} Rd1 {[%emt 0:01:24]} 27. Qe2 {[%emt 0:04:42]} Rc1 {[%emt 0:00:05]} 28. Bf1 {[%emt 0:00:35]} Bb4 {[%emt 0:00:48]} 29. Nc2 {[%emt 0:00:57]} Bh3 {[%emt 0:00:28]} 30. Ne3 {[%emt 0:00:13]} Re1 {[%emt 0:00:29]} 31. Qxe1 {[%emt 0:00:28]} Bxe1 {[%emt 0:00:14]} 32. Bxh3 {[%emt 0:00:04] normal} 1-0

[Event "DVM U20 2019"]
[Site "Braunschweig"]
[Date "2019.12.27"]
[Round "2"]
[White "Biastoch, Bennet"]
[Black "Engel, Robert"]
[Result "1-0"]
[ECO "B90"]
[WhiteElo "2242"]
[BlackElo "2075"]
[Annotator "NA"]
[PlyCount "57"]
[EventDate "2019.12.27"]
[EventType "team-tourn"]
[EventRounds "7"]
[EventCountry "GER"]
[SourceTitle "playchess.com"]
[Source "ChessBase"]
[SourceQuality "1"]
[WhiteTeam "SG Aufbau Elbe Magdeburg"]
[BlackTeam "Hamburger SK"]
[TimeControl "40/5400+30:1800+30"]

1. e4 {[%emt 0:00:00]} c5 {[%emt 0:00:00]} 2. Nf3 {[%emt 0:00:00]} d6 {[%emt 0:00:00]} 3. d4 {[%emt 0:00:00]} cxd4 {[%emt 0:00:00]} 4. Nxd4 {[%emt 0:00:00]} Nf6 {[%emt 0:00:00]} 5. Nc3 {[%emt 0:00:11]} a6 {[%emt 0:00:00]} 6. h3 {[%emt 0:00:22]} e6 {[%emt 0:00:03]} 7. g4 {[%emt 0:00:59]} Be7 {[%emt 0:00:09]} 8. Be3 {[%emt 0:01:43]} Nfd7 {[%emt 0:03:49]} 9. Bg2 {[%emt 0:10:46]} Nc6 {[%emt 0:01:02]} 10. Qe2 {[%emt 0:03:42]} Qc7 {[%emt 0:11:27]} 11. O-O {[%emt 0:10:30]} O-O {[%emt 0:08:23]} 12. Rad1 {[%emt 0:10:53]} Nxd4 {[%emt 0:09:02]} 13. Bxd4 {[%emt 0:00:22]} b5 {[%emt 0:01:28]} 14. e5 {[%emt 0:10:34]} Rb8 {[%emt 0:03:52]} 15. exd6 {[%emt 0:03:57]} Bxd6 {[%emt 0:00:16]} 16. Ne4 {[%emt 0:00:50]} Be7 {[%emt 0:00:41]} 17. Rd3 {[%emt 0:02:13]} Bb7 {[%emt 0:05:58]} 18. Rfd1 {[%emt 0:02:38]} Bd5 {[%emt 0:07:35]} 19. b3 {[%emt 0:06:44]} b4 {[%emt 0:01:42]} 20. c4 {[%emt 0:08:04]} bxc3 {[%emt 0:04:06]} 21. Nxc3 {[%emt 0:00:28]} Bxg2 {[%emt 0:01:19]} 22. Kxg2 {[%emt 0:00:07]} Nc5 {[%emt 0:06:23]} 23. Bxc5 {[%emt 0:02:26]} Bxc5 {[%emt 0:00:32]} 24. Rd7 {[%emt 0:01:07]} Qf4 {[%emt 0:02:35]} 25. R1d3 {[%emt 0:05:04]} Bb6 {[%emt 0:04:17]} 26. Rf3 {[%emt 0:01:34]} Qb4 {[%emt 0:03:26]} 27. Qxa6 {[%emt 0:01:29]} h5 {[%emt 0:06:23]} 28. Qa4 {[%emt 0:06:39]} Qc5 {[%emt 0:01:19]} 29. Qf4 {[%emt 0:00:44] normal} 1-0

[Event "DVM U20 2019"]
[Site "Braunschweig"]
[Date "2019.12.27"]
[Round "2"]
[White "Holinka, Henning"]
[Black "Sieber, Fiona"]
[Result "1-0"]
[ECO "B56"]
[WhiteElo "2233"]
[BlackElo "2277"]
[Annotator "NA"]
[PlyCount "109"]
[EventDate "2019.12.27"]
[EventType "team-tourn"]
[EventRounds "7"]
[EventCountry "GER"]
[SourceTitle "playchess.com"]
[Source "ChessBase"]
[SourceQuality "1"]
[WhiteTeam "Hamburger SK"]
[BlackTeam "SG Aufbau Elbe Magdeburg"]
[TimeControl "40/5400+30:1800+30"]

1. e4 {[%emt 0:00:00]} c5 {[%emt 0:00:00]} 2. Nf3 {[%emt 0:00:00]} d6 {[%emt 0:00:00]} 3. d4 {[%emt 0:00:00]} cxd4 {[%emt 0:00:00]} 4. Nxd4 {[%emt 0:00:00]} Nf6 {[%emt 0:00:00]} 5. Nc3 {[%emt 0:00:06]} Nc6 {[%emt 0:00:00]} 6. Nb3 {[%emt 0:12:34]} e6 {[%emt 0:02:54]} 7. Bd3 {[%emt 0:03:12]} Be7 {[%emt 0:01:05]} 8. O-O {[%emt 0:02:26]} O-O {[%emt 0:00:58]} 9. Be3 {[%emt 0:06:28]} a6 {[%emt 0:25:55]} 10. f4 {[%emt 0:05:21]} b5 {[%emt 0:01:08]} 11. a3 {[%emt 0:03:32]} Bb7 {[%emt 0:01:27]} 12. g4 {[%emt 0:06:15]} Re8 {[%emt 0:01:25]} 13. g5 {[%emt 0:10:13]} Nd7 {[%emt 0:00:05]} 14. h4 {[%emt 0:02:11]} Bf8 {[%emt 0:03:51]} 15. Qg4 {[%emt 0:06:01]} Nb6 {[%emt 0:08:49]} 16. Rae1 {[%emt 0:09:35]} d5 {[%emt 0:10:11]} 17. Bc1 {[%emt 0:08:48]} dxe4 {[%emt 0:07:43]} 18. Nxe4 {[%emt 0:01:13]} Nd5 {[%emt 0:00:21]} 19. Kh2 {[%emt 0:04:39]} Qb6 {[%emt 0:01:37]} 20. h5 {[%emt 0:01:47]} Rad8 {[%emt 0:02:31]} 21. g6 {[%emt 0:02:58]} fxg6 {[%emt 0:06:53]} 22. hxg6 {[%emt 0:00:54]} h6 {[%emt 0:00:12]} 23. c4 {[%emt 0:04:50]} bxc4 {[%emt 0:03:17]} 24. Bxc4 {[%emt 0:00:08]} a5 {[%emt 0:03:49]} 25. Nc3 {[%emt 0:04:10]} Bc8 {[%emt 0:04:30]} 26. Qf3 {[%emt 0:01:54]} Nxc3 {[%emt 0:00:59]} 27. Qxc3 {[%emt 0:00:27]} Qc7 {[%emt 0:05:01]} 28. Be3 {[%emt 0:01:44]} Qe7 {[%emt 0:02:27]} 29. Bc5 {[%emt 0:01:35]} Qh4+ {[%emt 0:00:35]} 30. Qh3 {[%emt 0:00:10]} Qf6 {[%emt 0:00:22]} 31. Bxf8 {[%emt 0:00:40]} Qxb2+ {[%emt 0:01:45]} 32. Re2 {[%emt 0:00:15]} Qf6 {[%emt 0:01:32]} 33. Bc5 {[%emt 0:00:25]} a4 {[%emt 0:00:28]} 34. Nd2 {[%emt 0:00:45]} Nd4 {[%emt 0:00:44]} 35. Ne4 {[%emt 0:00:32]} Qxg6 {[%emt 0:00:30]} 36. f5 {[%emt 0:00:32]} Qf7 {[%emt 0:00:59]} 37. Rg2 {[%emt 0:00:30]} Bb7 {[%emt 0:01:17]} 38. f6 {[%emt 0:01:03]} g6 {[%emt 0:01:29]} 39. Nd6 {[%emt 0:00:42]} Rxd6 {[%emt 0:00:01]} 40. Bxd6 {[%emt 0:00:24]} Bxg2 {[%emt 0:00:02]} 41. Qxg2 {[%emt 0:30:57]} Kh7 {[%emt 0:05:13]} 42. Qe4 {[%emt 0:00:00]} Nf5 {[%emt 0:04:52]} 43. Be5 {[%emt 0:00:00]} Rd8 {[%emt 0:01:03]} 44. Rb1 {[%emt 0:00:00]} Rd2+ {[%emt 0:04:54]} 45. Kh3 {[%emt 0:00:00]} Rd7 {[%emt 0:01:15]} 46. Rb8 {[%emt 0:00:00]} g5 {[%emt 0:04:07]} 47. Kg4 {[%emt 0:00:00]} Kg6 {[%emt 0:03:12]} 48. Qa8 {[%emt 0:00:04]} h5+ {[%emt 0:03:29]} 49. Kf3 {[%emt 0:00:22]} g4+ {[%emt 0:00:13]} 50. Kf2 {[%emt 0:00:53]} g3+ {[%emt 0:03:12]} 51. Ke1 {[%emt 0:02:11]} Nh6 {[%emt 0:05:25]} 52. Rf8 {[%emt 0:00:43]} Ra7 {[%emt 0:01:13]} 53. Qe4+ {[%emt 0:00:46]} Nf5 {[%emt 0:00:05]} 54. Rxf7 {[%emt 0:00:00]} Kxf7 {[%emt 0:00:06]} 55. Qxf5 {[%emt 0:00:01] normal} 1-0

[Event "DVM U20 2019"]
[Site "Braunschweig"]
[Date "2019.12.27"]
[Round "2"]
[White "Joeres, Stefan"]
[Black "Stelmaszyk, Nico"]
[Result "0-1"]
[ECO "B33"]
[WhiteElo "2201"]
[BlackElo "2194"]
[Annotator "NA"]
[PlyCount "96"]
[EventDate "2019.12.27"]
[EventType "team-tourn"]
[EventRounds "7"]
[EventCountry "GER"]
[SourceTitle "playchess.com"]
[Source "ChessBase"]
[SourceQuality "1"]
[WhiteTeam "Karlsruher SF"]
[BlackTeam "SK Lehrte 1919"]
[TimeControl "40/5400+30:1800+30"]

1. e4 {[%emt 0:00:00]} c5 {[%emt 0:00:00]} 2. Nf3 {[%emt 0:00:00]} e6 {[%emt 0:00:00]} 3. d4 {[%emt 0:00:00]} cxd4 {[%emt 0:00:00]} 4. Nxd4 Nc6 {[%emt 0:00:00]} 5. Nc3 {[%emt 0:00:00]} Nf6 {[%emt 0:00:00]} 6. Ndb5 {[%emt 0:00:41]} d6 {[%emt 0:00:01]} 7. Bf4 {[%emt 0:00:11]} e5 {[%emt 0:00:06]} 8. Bg5 {[%emt 0:00:08]} a6 {[%emt 0:00:06]} 9. Na3 {[%emt 0:00:01]} b5 {[%emt 0:00:07]} 10. Bxf6 {[%emt 0:00:01]} gxf6 {[%emt 0:00:09]} 11. Nd5 {[%emt 0:01:37]} Bg7 12. c3 {[%emt 0:00:03]} f5 {[%emt 0:01:32]} 13. exf5 {[%emt 0:00:01]} Bxf5 {[%emt 0:01:28]} 14. Nc2 {[%emt 0:01:57]} O-O {[%emt 0:02:38]} 15. Nce3 {[%emt 0:00:41]} Be6 16. Bd3 {[%emt 0:00:09]} f5 {[%emt 0:03:57]} 17. O-O {[%emt 0:00:13]} e4 {[%emt 0:15:43]} 18. Nf4 {[%emt 0:00:02]} Bf7 {[%emt 0:04:09]} 19. Bc2 {[%emt 0:00:30]} Be5 {[%emt 0:04:59]} 20. Nfd5 f4 21. Qg4+ {[%emt 0:05:41]} Bg6 {[%emt 0:31:01]} 22. Bxe4 {[%emt 0:02:06]} fxe3 {[%emt 0:01:46]} 23. Nxe3 Rf4 {[%emt 0:10:03]} 24. Bd5+ {[%emt 0:13:49]} Kh8 {[%emt 0:00:14]} 25. Qe2 {[%emt 0:05:23]} Rc8 {[%emt 0:02:21]} 26. g3 {[%emt 0:01:23]} Rf8 {[%emt 0:00:45]} 27. a4 {[%emt 0:00:41]} Qb6 {[%emt 0:04:56]} 28. axb5 {[%emt 0:03:34]} axb5 {[%emt 0:00:22]} 29. Bg2 {[%emt 0:00:12]} Ne7 {[%emt 0:03:24]} 30. Kh1 {[%emt 0:02:17]} b4 {[%emt 0:03:10]} 31. Ng4 {[%emt 0:08:22]} Bh5 {[%emt 0:03:29]} 32. Bf3 {[%emt 0:00:55]} bxc3 {[%emt 0:05:52]} 33. Nxe5 {[%emt 0:00:49]} Bxf3+ {[%emt 0:01:26]} 34. Nxf3 {[%emt 0:00:17]} cxb2 {[%emt 0:00:32]} 35. Rae1 {[%emt 0:02:58]} Qb7 {[%emt 0:02:18]} 36. Qxe7 {[%emt 0:01:26]} b1=Q {[%emt 0:00:32]} 37. Qxf8+ {[%emt 0:02:13]} Rxf8 {[%emt 0:00:07]} 38. Rxb1 {[%emt 0:00:06]} Qxf3+ {[%emt 0:00:06]} 39. Kg1 {[%emt 0:00:04]} d5 {[%emt 0:00:23]} 40. Rbd1 {[%emt 0:00:06]} h5 {[%emt 0:00:20]} 41. h4 {[%emt 0:30:46]} Re8 {[%emt 0:31:56]} 42. Rd4 {[%emt 0:00:14]} Re2 {[%emt 0:00:26]} 43. Rf4 {[%emt 0:00:04]} Qc3 {[%emt 0:00:18]} 44. Rf5 {[%emt 0:00:01]} Re5 {[%emt 0:00:00]} 45. Rf8+ {[%emt 0:00:00]} Kg7 {[%emt 0:00:00]} 46. Rd8 {[%emt 0:00:00]} Re1 {[%emt 0:00:00]} 47. Rxd5 {[%emt 0:00:00]} Rxf1+ {[%emt 0:00:00]} 48. Kxf1 {[%emt 0:00:00]} Qc4+ {[%emt 0:00:00] normal} 0-1

[Event "DVM U20 2019"]
[Site "Braunschweig"]
[Date "2019.12.27"]
[Round "2"]
[White "Flüchter, Gregor"]
[Black "McPherson, Elisha"]
[Result "1-0"]
[ECO "C01"]
[WhiteElo "2174"]
[BlackElo "1975"]
[Annotator "NA"]
[PlyCount "52"]
[EventDate "2019.12.27"]
[EventType "team-tourn"]
[EventRounds "7"]
[EventCountry "GER"]
[SourceTitle "playchess.com"]
[Source "ChessBase"]
[SourceQuality "1"]
[WhiteTeam "SF Brackel"]
[BlackTeam "SF Augsburg"]
[TimeControl "40/5400+30:1800+30"]

1. e4 {[%emt 0:00:00]} e6 {[%emt 0:00:00]} 2. d4 {[%emt 0:00:00]} d5 {[%emt 0:00:00]} 3. exd5 {[%emt 0:00:00]} exd5 {[%emt 0:00:00]} 4. Nf3 {[%emt 0:00:09]} Bd6 {[%emt 0:00:00]} 5. c4 {[%emt 0:00:07]} Nf6 {[%emt 0:00:00]} 6. Nc3 {[%emt 0:00:08]} O-O {[%emt 0:00:00]} 7. Bd3 {[%emt 0:03:30]} dxc4 {[%emt 0:06:54]} 8. Bxc4 {[%emt 0:00:07]} Nbd7 {[%emt 0:01:56]} 9. O-O {[%emt 0:00:42]} Nb6 {[%emt 0:00:21]} 10. Bb3 {[%emt 0:00:32]} Bg4 {[%emt 0:00:42]} 11. Qd3 {[%emt 0:01:12]} Bh5 {[%emt 0:03:15]} 12. Bg5 {[%emt 0:05:41]} Bg6 {[%emt 0:06:02]} 13. Qd2 {[%emt 0:01:30]} Re8 {[%emt 0:22:26]} 14. Nh4 {[%emt 0:20:45]} Be7 {[%emt 0:25:48]} 15. Nxg6 {[%emt 0:05:51]} hxg6 {[%emt 0:00:02]} 16. Rfe1 {[%emt 0:02:23]} c6 {[%emt 0:06:35]} 17. Re2 {[%emt 0:18:39]} Nfd5 {[%emt 0:02:05]} 18. Rae1 {[%emt 0:02:02]} Bxg5 {[%emt 0:15:39]} 19. Rxe8+ {[%emt 0:00:41]} Qxe8 {[%emt 0:00:02]} 20. Rxe8+ {[%emt 0:00:13]} Rxe8 {[%emt 0:00:02]} 21. Qd1 {[%emt 0:00:52]} Nf4 {[%emt 0:03:56]} 22. g3 {[%emt 0:01:32]} Ne6 {[%emt 0:00:19]} 23. Ne4 {[%emt 0:08:51]} Bf6 {[%emt 0:02:41]} 24. Qg4 {[%emt 0:03:57]} Bxd4 {[%emt 0:01:49]} 25. Nd6 {[%emt 0:00:38]} Rd8 {[%emt 0:01:19] normal} 26. Nxf7 {[%emt 0:00:22]} Nd5 1-0

[Event "DVM U20 2019"]
[Site "Braunschweig"]
[Date "2019.12.27"]
[Round "2"]
[White "Schimnatkowski, Lukas"]
[Black "Schneider, Jana"]
[Result "1/2-1/2"]
[ECO "C07"]
[WhiteElo "2157"]
[BlackElo "2210"]
[Annotator "NA"]
[PlyCount "43"]
[EventDate "2019.12.27"]
[EventType "team-tourn"]
[EventRounds "7"]
[EventCountry "GER"]
[SourceTitle "playchess.com"]
[Source "ChessBase"]
[SourceQuality "1"]
[WhiteTeam "SF Essen-Katernberg"]
[BlackTeam "SC Bavaria Regensburg"]
[TimeControl "40/5400+30:1800+30"]

1. e4 {[%emt 0:00:00]} e6 {[%emt 0:00:39]} 2. d4 {[%emt 0:00:00]} d5 {[%emt 0:00:07]} 3. Nd2 {[%emt 0:00:01]} c5 {[%emt 0:00:07]} 4. exd5 {[%emt 0:00:20]} Qxd5 {[%emt 0:00:06]} 5. Ngf3 {[%emt 0:00:11]} cxd4 {[%emt 0:00:36]} 6. Bc4 {[%emt 0:00:18]} Qd6 {[%emt 0:00:00]} 7. O-O {[%emt 0:00:26]} Nf6 {[%emt 0:00:00]} 8. Nb3 {[%emt 0:00:07]} Nc6 {[%emt 0:00:00]} 9. Nbxd4 {[%emt 0:00:07]} Nxd4 {[%emt 0:00:05]} 10. Nxd4 {[%emt 0:00:08]} a6 {[%emt 0:01:15]} 11. Re1 {[%emt 0:02:16]} Qc7 {[%emt 0:00:11]} 12. Bb3 {[%emt 0:00:21]} Bd7 {[%emt 0:00:29]} 13. Bg5 {[%emt 0:09:11]} Bd6 {[%emt 0:02:11]} 14. Bxf6 {[%emt 0:21:49]} gxf6 {[%emt 0:00:54]} 15. Qh5 {[%emt 0:00:45]} O-O-O {[%emt 0:02:01]} 16. Qxf7 {[%emt 0:01:49]} Bxh2+ {[%emt 0:07:46]} 17. Kh1 {[%emt 0:10:18]} Be5 {[%emt 0:01:26]} 18. Nxe6 {[%emt 0:02:26]} Bxe6 {[%emt 0:00:15]} 19. Bxe6+ {[%emt 0:00:29]} Kb8 {[%emt 0:00:15]} 20. Qxc7+ {[%emt 0:01:43]} Kxc7 {[%emt 0:00:09]} 21. Rad1 {[%emt 0:08:21]} Bxb2 {[%emt 0:01:00] normal} 22. Bf5 {[%emt 0:03:09] normal} 1/2-1/2

[Event "DVM U20 2019"]
[Site "Braunschweig"]
[Date "2019.12.27"]
[Round "2"]
[White "Lutz, Ruben"]
[Black "Kololli, Martin"]
[Result "0-1"]
[ECO "A45"]
[WhiteElo "2132"]
[BlackElo "2343"]
[Annotator "NA"]
[PlyCount "69"]
[EventDate "2019.12.27"]
[EventType "team-tourn"]
[EventRounds "7"]
[EventCountry "GER"]
[SourceTitle "playchess.com"]
[Source "ChessBase"]
[SourceQuality "1"]
[WhiteTeam "USV TU Dresden"]
[BlackTeam "Lübecker SV"]
[TimeControl "40/5400+30:1800+30"]

1. d4 {[%emt 0:00:00]} Nf6 {[%emt 0:00:00]} 2. Bf4 {[%emt 0:00:00]} e6 {[%emt 0:00:12]} 3. e3 {[%emt 0:00:00]} b6 {[%emt 0:00:33]} 4. Nf3 {[%emt 0:00:28]} Bb7 {[%emt 0:00:07]} 5. Nbd2 {[%emt 0:00:11]} Be7 {[%emt 0:01:09]} 6. Bd3 {[%emt 0:00:25]} Nh5 {[%emt 0:01:31]} 7. Bg3 {[%emt 0:03:01]} d6 {[%emt 0:01:48]} 8. Qe2 {[%emt 0:00:36]} a6 {[%emt 0:01:59]} 9. a4 {[%emt 0:01:36]} Nd7 {[%emt 0:01:25]} 10. O-O {[%emt 0:01:03]} O-O {[%emt 0:01:34]} 11. e4 {[%emt 0:02:17]} e5 {[%emt 0:01:35]} 12. dxe5 {[%emt 0:01:18]} Nxg3 {[%emt 0:00:08]} 13. hxg3 {[%emt 0:00:03]} dxe5 {[%emt 0:00:42]} 14. Nc4 {[%emt 0:06:35]} Bf6 {[%emt 0:01:05]} 15. Rfd1 {[%emt 0:03:24]} g6 {[%emt 0:03:03]} 16. c3 {[%emt 0:02:15]} Qe7 {[%emt 0:00:24]} 17. Bc2 {[%emt 0:03:21]} Bg7 {[%emt 0:02:16]} 18. g4 {[%emt 0:19:03]} Rad8 19. g5 {[%emt 0:13:08]} Nc5 {[%emt 0:07:48]} 20. b4 {[%emt 0:05:33]} Ne6 {[%emt 0:04:48]} 21. Qe3 {[%emt 0:00:06]} Rxd1+ {[%emt 0:02:11]} 22. Rxd1 {[%emt 0:00:29]} Bc8 {[%emt 0:02:33]} 23. g3 {[%emt 0:14:24]} Nd8 {[%emt 0:00:56]} 24. Nh2 {[%emt 0:02:15]} Qe6 {[%emt 0:04:17]} 25. Bb3 {[%emt 0:03:19]} Qe7 {[%emt 0:00:40]} 26. a5 {[%emt 0:04:04]} b5 {[%emt 0:01:06]} 27. Nd2 {[%emt 0:09:20]} Re8 {[%emt 0:05:08]} 28. Ndf1 {[%emt 0:03:32]} Be6 {[%emt 0:02:34]} 29. Bxe6 {[%emt 0:01:02]} Nxe6 {[%emt 0:00:05]} 30. Nf3 {[%emt 0:00:04]} c5 {[%emt 0:00:12]} 31. bxc5 {[%emt 0:01:48]} Nxc5 {[%emt 0:00:15]} 32. Rd5 {[%emt 0:00:37]} Rc8 {[%emt 0:00:19]} 33. N1d2 {[%emt 0:00:40]} Na4 {[%emt 0:00:49]} 34. Nb1 {[%emt 0:00:09]} Qc7 {[%emt 0:00:58]} 35. Rd3 {[%emt 0:00:00] normal} 0-1

[Event "DVM U20 2019"]
[Site "Braunschweig"]
[Date "2019.12.27"]
[Round "2"]
[White "Doll, Alexander"]
[Black "Thomsen, Phil"]
[Result "1-0"]
[ECO "B38"]
[WhiteElo "2127"]
[BlackElo "2147"]
[Annotator "NA"]
[PlyCount "77"]
[EventDate "2019.12.27"]
[EventType "team-tourn"]
[EventRounds "7"]
[EventCountry "GER"]
[SourceTitle "playchess.com"]
[Source "ChessBase"]
[SourceQuality "1"]
[WhiteTeam "OSG Baden-Baden"]
[BlackTeam "Sges Bensheim"]
[TimeControl "40/5400+30:1800+30"]

1. e4 {[%emt 0:00:00]} c5 {[%emt 0:00:00]} 2. Nf3 {[%emt 0:00:10]} Nc6 {[%emt 0:00:00]} 3. d4 {[%emt 0:00:21]} cxd4 {[%emt 0:00:00]} 4. Nxd4 {[%emt 0:00:04]} g6 {[%emt 0:00:04]} 5. c4 {[%emt 0:00:23]} Bg7 {[%emt 0:00:04]} 6. Be3 {[%emt 0:00:05]} Nf6 {[%emt 0:00:08]} 7. Nc3 {[%emt 0:00:04]} O-O {[%emt 0:00:09]} 8. Be2 {[%emt 0:00:24]} d6 {[%emt 0:00:05]} 9. O-O {[%emt 0:00:04]} Bd7 {[%emt 0:00:04]} 10. h3 {[%emt 0:00:06]} Nxd4 {[%emt 0:00:06]} 11. Bxd4 {[%emt 0:00:06]} Bc6 {[%emt 0:00:07]} 12. Qc2 {[%emt 0:00:14]} a5 {[%emt 0:00:47]} 13. Rad1 {[%emt 0:00:08]} Nd7 {[%emt 0:03:06]} 14. Bxg7 {[%emt 0:00:06]} Kxg7 {[%emt 0:00:04]} 15. Bg4 {[%emt 0:00:07]} Ra6 {[%emt 0:22:44]} 16. Bxd7 {[%emt 0:00:15]} Bxd7 {[%emt 0:01:06]} 17. a4 {[%emt 0:00:40]} Rc6 {[%emt 0:06:54]} 18. b3 {[%emt 0:01:44]} f6 19. Rd2 Rc5 {[%emt 0:16:43]} 20. Rfd1 {[%emt 0:10:44]} Qe8 {[%emt 0:03:43]} 21. f3 {[%emt 0:08:07]} Rg5 {[%emt 0:10:39]} 22. Rd5 {[%emt 0:01:23]} h6 {[%emt 0:06:53]} 23. Qf2 {[%emt 0:11:04]} Bc6 {[%emt 0:02:55]} 24. h4 {[%emt 0:06:06]} Re5 {[%emt 0:04:15]} 25. f4 {[%emt 0:19:09]} Rh5 {[%emt 0:01:48]} 26. Rxh5 {[%emt 0:01:48]} gxh5 {[%emt 0:00:06]} 27. f5 {[%emt 0:00:20]} Rg8 {[%emt 0:02:51]} 28. Rd3 {[%emt 0:02:28]} Kf7 {[%emt 0:03:16]} 29. Rg3 {[%emt 0:00:52]} Qd8 {[%emt 0:02:08]} 30. Rxg8 {[%emt 0:01:01]} Qxg8 {[%emt 0:01:37]} 31. Qf3 {[%emt 0:01:06]} Qg4 {[%emt 0:02:17]} 32. Qxg4 {[%emt 0:01:27]} hxg4 {[%emt 0:00:01]} 33. Kf2 {[%emt 0:00:37]} e5 34. h5 {[%emt 0:08:41]} Ke7 {[%emt 0:05:43]} 35. Kg3 {[%emt 0:00:10]} Kd8 {[%emt 0:00:33]} 36. Kxg4 {[%emt 0:00:15]} Kc7 {[%emt 0:01:00]} 37. Nd5+ {[%emt 0:00:59]} Bxd5 {[%emt 0:00:17]} 38. cxd5 {[%emt 0:00:58] normal} Kb6 {[%emt 0:00:19]} 39. Kf3 {[%emt 0:00:16] normal} 1-0